bitfinex/quotes_ETHUSD_20260114
["timestamp","ask_amount","ask_price","bid_price","bid_amount"]
[1768366780043,0.967,3334.3,3333.9,0.001]
[1768366781159,0.967,3334.3,3333.9,9.65583745]
[1768366782753,1.522,3334.3,3333.9,9.65583745]
[1768366785230,2.077,3334.3,3333.9,9.65583745]
[1768366786346,2.077,3334.3,3333.9,0.001]
[1768366786667,2.077,3334.3,3334.2,0.001]
[1768366787870,2.632,3334.3,3334.2,0.001]
[1768366790677,3.187,3334.3,3334.2,0.001]
[1768366793081,3.742,3334.3,3334.2,0.001]
[1768366795779,4.297,3334.3,3334.2,0.001]
[1768366798482,4.852,3334.3,3334.2,0.001]
[1768366799887,7.85113025,3334.3,3334.2,0.001]
[1768366800862,7.85113025,3334.3,3332.9,9.65483745]
[1768366800863,19.29635647,3334.3,3332.9,9.65483745]
[1768366801053,19.29635647,3334.3,3332.0,13.24020731]
[1768366801054,8.95544956,3334.1,3333.3,9.65483745]
[1768366801251,8.81555213,3333.6,3332.9,9.65483745]
[1768366801454,0.412,3333.5,3332.5,9.65483745]
[1768366801683,8.74768439,3333.2,3332.3,9.65483745]
[1768366801886,0.412,3333.1,3332.3,9.65483745]
[1768366802893,3.00030003,3333.0,3332.3,9.65483745]
[1768366805791,3.55530003,3333.0,3332.3,9.65483745]
[1768366805970,4.3974632,3333.0,3332.3,9.65483745]
[1768366808294,4.9524632,3333.0,3332.3,9.65483745]
[1768366810198,4.9524632,3333.0,3332.2,0.001]
[1768366810199,4.9524632,3333.0,3332.6,0.001]
[1768366810364,0.412,3332.9,3332.6,9.9827625]
[1768366810695,1.11,3333.0,3332.6,9.9827625]
[1768366810696,0.412,3332.8,3332.6,9.9827625]
[1768366811589,0.412,3332.8,3332.6,0.001]
[1768366812094,0.412,3332.8,3332.6,9.9827625]
[1768366812880,0.555,3332.8,3332.6,9.9827625]
[1768366813192,0.412,3332.7,3332.6,9.9827625]
[1768366813690,0.412,3332.7,3332.6,0.001]
[1768366815389,0.967,3332.7,3332.6,0.001]
[1768366815884,0.555,3332.7,3332.6,0.001]
[1768366816083,0.967,3332.7,3332.6,0.001]
[1768366817398,0.967,3332.7,3332.2,9.9827625]
[1768366817399,1.4192417,3332.7,3332.2,0.001]
[1768366817702,1.9742417,3332.7,3332.2,0.001]
[1768366819764,4.97482676,3332.7,3332.2,0.001]
[1768366819967,1.9742417,3332.7,3332.2,0.001]
[1768366820196,2.5292417,3332.7,3332.2,0.001]
[1768366820396,2.077,3332.7,3332.2,0.001]
[1768366820794,2.077,3332.7,3332.2,9.52009302]
[1768366821099,2.077,3332.7,3332.2,0.001]
[1768366821300,2.077,3332.7,3332.2,9.52009302]
[1768366821987,2.077,3332.7,3332.5,0.001]
[1768366822590,2.632,3332.7,3332.5,0.001]
[1768366825204,3.187,3332.7,3332.5,0.001]
[1768366827696,3.742,3332.7,3332.5,0.001]
[1768366830109,4.297,3332.7,3332.5,0.001]
[1768366830408,8.0828207,3332.7,3332.5,0.001]
[1768366830609,5.08224929,3332.7,3332.5,0.001]
[1768366831506,8.08283481,3332.7,3332.5,0.001]
[1768366832181,9.46969501,3332.7,3332.5,0.001]
[1768366832597,10.02469501,3332.7,3332.5,0.001]
[1768366832805,1.0579695,3332.6,3332.5,0.001]
[1768366834224,7.02410949,3332.7,3332.5,0.001]
[1768366834841,10.02469798,3332.7,3332.5,0.001]
[1768366835031,10.57969798,3332.7,3332.5,0.001]
[1768366835686,9.19283778,3332.7,3332.5,0.001]
[1768366836616,6.19224929,3332.7,3332.5,0.001]
[1768366836813,8.40760078,3332.7,3332.5,0.001]
[1768366837630,0.412,3332.6,3332.5,0.001]
[1768366838924,0.412,3332.6,3332.5,9.87524203]
[1768366839086,5.55,3332.7,3332.5,9.87524203]
[1768366839290,0.412,3332.6,3332.5,9.87524203]
[1768366840047,0.967,3332.6,3332.5,9.87524203]
[1768366840514,5.55,3332.7,3332.6,9.92424203]
[1768366840727,5.962,3332.7,3332.6,9.92424203]
[1768366841086,5.962,3332.7,3332.2,0.001]
[1768366841087,9.75822414,3332.6,3331.7,3.5246317]
[1768366841290,9.75822414,3332.4,3331.8,0.412]
[1768366841524,1.45052981,3332.5,3330.9,9.87424203]
[1768366841525,0.41199999,3331.9,3331.3,9.87424203]
[1768366842413,0.96699999,3331.9,3331.7,0.412]
[1768366842606,3.00138063,3331.8,3331.7,0.412]
[1768366842920,3.00138063,3331.8,3331.7,0.40550038]
[1768366843336,3.00138063,3331.8,3331.7,0.39051336]
[1768366843634,3.00138063,3331.8,3331.7,0.38351623]
[1768366844131,3.00138063,3331.8,3331.7,0.412]
[1768366844862,3.55638063,3331.8,3331.7,0.412]
[1768366845067,0.555,3331.8,3331.7,0.412]
[1768366845368,15.75954442,3332.6,3331.8,9.87424203]
[1768366846069,0.64320733,3332.5,3331.8,9.87424203]
[1768366846269,15.75954442,3332.6,3331.8,9.87424203]
[1768366847139,13.31388428,3332.6,3331.8,9.87424203]
[1768366847343,15.17847696,3332.6,3331.8,9.87424203]
[1768366847672,8.42091296,3332.6,3331.8,9.87424203]
[1768366848249,1.85352324,3332.5,3331.7,0.412]
[1768366848457,1.21039046,3332.5,3331.7,0.412]
[1768366849179,3.00084023,3332.4,3331.7,0.412]
[1768366849379,12.67358603,3332.4,3331.7,0.412]
[1768366849582,13.22858603,3332.4,3331.7,0.412]
[1768366850076,13.53974819,3332.4,3331.7,0.412]
[1768366850784,9.75822414,3332.3,3331.6,0.001]
[1768366850963,9.75822414,3332.3,3331.7,0.412]
[1768366851164,9.75822414,3332.1,3331.7,0.412]
[1768366851363,9.75822414,3332.1,3331.6,0.001]
[1768366851686,9.75822414,3332.1,3331.7,0.412]
[1768366851687,1.57602648,3332.1,3331.7,0.412]
[1768366851879,1.57602648,3332.1,3331.6,0.001]
[1768366852091,2.13102648,3332.1,3331.7,0.412]
[1768366852247,2.13102648,3332.1,3331.6,0.001]
[1768366852452,2.13102648,3332.1,3331.7,0.412]
[1768366853386,3.51440516,3332.0,3331.7,0.412]
[1768366853575,3.00120048,3332.0,3331.7,0.412]
[1768366853979,3.00120048,3332.0,3331.8,0.412]
[1768366854570,3.55620048,3332.0,3331.8,0.412]
[1768366856959,13.86942462,3332.0,3331.8,0.412]
[1768366857161,15.76957452,3332.0,3331.8,0.412]
[1768366857355,15.76957452,3332.0,3331.6,0.001]
[1768366857356,9.75822414,3331.9,3331.6,0.001]
[1768366857562,9.75822414,3331.9,3331.7,0.412]
[1768366857959,9.75822414,3331.9,3331.6,0.412]
[1768366858593,1.03467174,3332.0,3331.7,9.87424203]
[1768366858795,3.86701061,3332.4,3332.1,9.87424203]
[1768366858796,0.555,3332.4,3332.1,9.87424203]
[1768366859089,0.555,3332.4,3332.2,0.412]
[1768366859291,1.11,3332.4,3332.2,0.412]
[1768366859462,1.11,3332.4,3332.2,10.28624203]
[1768366860694,1.11,3332.4,3332.0,9.88922754]
[1768366860995,4.57742515,3332.4,3331.9,0.412]
[1768366861804,5.13242515,3332.4,3331.8,9.87424203]
[1768366861971,5.13242515,3332.4,3331.2,9.87424203]
[1768366861972,9.75822414,3332.3,3331.2,9.87424203]
[1768366862289,9.75822414,3332.3,3330.8,3.00226408]
[1768366862290,9.75822414,3332.3,3331.3,0.412]
[1768366862461,9.75822414,3332.1,3331.3,0.412]
[1768366862880,1.7891494,3332.2,3331.2,0.412]
[1768366862881,9.75822414,3331.9,3331.2,0.412]
[1768366863394,6.00240096,3332.0,3331.2,0.412]
[1768366864282,16.3156251,3332.0,3331.2,0.412]
[1768366866384,0.555,3332.0,3331.6,9.0173743]
[1768366866587,0.555,3332.0,3331.3,6.00366222]
[1768366866588,1.11,3332.0,3331.8,9.0173743]
[1768366866770,1.11,3332.0,3331.9,0.412]
[1768366869092,1.665,3332.0,3331.9,0.412]
[1768366869310,0.787,3332.0,3331.9,0.412]
[1768366870573,11.03762056,3332.4,3331.9,0.412]
[1768366871378,11.59262056,3332.4,3331.9,0.412]
[1768366871593,14.59348292,3332.4,3331.9,0.412]
[1768366872594,14.59348292,3332.4,3331.6,9.0173743]
[1768366872900,9.37262056,3332.3,3332.0,0.412]
[1768366873303,5.22086236,3332.4,3332.0,0.412]
[1768366873797,5.22086236,3332.4,3331.6,10.21927416]
[1768366873992,15.14848292,3332.4,3331.7,0.412]
[1768366874531,15.14848292,3332.4,3331.7,9.4293743]
[1768366874703,15.14846333,3332.4,3331.8,0.412]
[1768366874877,12.14762056,3332.4,3331.8,0.412]
[1768366875568,12.14762056,3332.4,3331.9,0.412]
[1768366875569,2.1585222,3332.3,3331.9,0.412]
[1768366875769,15.14849504,3332.4,3331.9,0.412]
[1768366876499,15.70349504,3332.4,3331.9,0.412]
[1768366876711,15.70349504,3332.4,3332.0,0.412]
[1768366876712,18.70436952,3332.4,3332.0,0.412]
[1768366877373,18.70436952,3332.4,3331.6,9.0173743]
[1768366877803,18.70436952,3332.4,3331.7,0.412]
[1768366878011,20.25920201,3332.4,3331.6,9.0173743]
[1768366878376,20.25920201,3332.4,3331.7,0.412]
[1768366878609,20.25920201,3332.4,3331.6,9.0173743]
[1768366878823,20.25920201,3332.4,3331.7,0.412]
[1768366879006,20.81420201,3332.4,3331.7,0.412]
[1768366879210,11.66180507,3332.3,3330.0,0.32211429]
[1768366879386,11.66180507,3332.3,3330.8,20.200098]
[1768366879387,9.58038487,3331.8,3330.8,20.200098]
[1768366879580,9.58038487,3331.8,3331.0,20.200098]
[1768366879793,9.57738362,3331.8,3331.0,20.200098]
[1768366881516,6.00294144,3331.7,3330.9,10.04058862]
[1768366881678,9.58038487,3331.6,3330.6,9.62858862]
[1768366881883,9.58038487,3331.6,3329.3,0.15615372]
[1768366881884,9.58038487,3331.6,3330.4,9.62858862]
[1768366882079,9.58038487,3331.4,3330.5,0.412]
[1768366882280,9.58038487,3331.2,3330.5,0.412]
[1768366882683,9.58038487,3331.2,3330.6,0.412]
[1768366883281,9.58038487,3331.2,3330.7,0.412]
[1768366883486,9.58038487,3331.0,3330.8,0.412]
[1768366883697,9.58038487,3331.0,3330.1,15.72292809]
[1768366883698,9.58038487,3331.0,3330.9,0.412]
[1768366883913,10.13538487,3331.0,3330.9,0.412]
[1768366884117,10.13538487,3331.0,3330.2,9.62858862]
[1768366884439,10.13538487,3331.0,3330.1,6.09433947]
[1768366884440,10.13538487,3331.0,3330.3,11.61288143]
[1768366884589,10.13538487,3331.0,3330.3,11.20088143]
[1768366884790,10.13538487,3331.0,3330.4,0.412]
[1768366885220,0.555,3331.0,3330.4,0.412]
[1768366886529,1.11,3331.0,3330.4,0.412]
[1768366886710,4.11211892,3331.0,3330.4,0.412]
[1768366888021,1.11,3331.0,3330.4,0.412]
[1768366888730,13.69249332,3331.0,3330.3,11.20088143]
[1768366888893,9.58038487,3330.9,3330.5,0.412]
[1768366889298,1.665,3331.0,3330.5,0.412]
[1768366889828,9.58038487,3330.9,3330.5,0.412]
[1768366890933,12.58260171,3330.9,3330.5,0.412]
[1768366891130,9.58038487,3330.9,3330.5,0.412]
[1768366891339,10.13538487,3330.9,3330.5,0.412]
[1768366892098,13.13757649,3330.9,3330.5,0.412]
[1768366892336,10.13538487,3330.9,3330.5,0.412]
[1768366892711,0.555,3330.9,3330.7,0.001]
[1768366893341,10.13538487,3330.9,3330.8,0.412]
[1768366893631,0.555,3330.9,3330.8,0.412]
[1768366893934,1.11,3330.9,3330.8,0.412]
[1768366894132,4.11219159,3330.9,3330.8,0.412]
[1768366894315,1.11,3330.9,3330.4,9.62858862]
[1768366894515,1.11,3330.9,3330.5,0.412]
[1768366895230,4.11220062,3330.9,3330.5,0.412]
[1768366895446,1.11,3330.9,3330.1,3.09147644]
[1768366895616,1.11,3330.9,3330.2,10.48094903]
[1768366896215,1.665,3330.9,3330.3,9.75980139]
[1768366898607,2.22,3330.9,3330.3,9.75980139]
[1768366898809,2.22,3330.9,3330.3,3.00272663]
[1768366899004,2.22,3330.9,3330.2,13.4837281]
[1768366899430,2.22,3330.9,3330.2,10.48094903]
[1768366900646,11.43833444,3330.9,3330.2,10.06894903]
[1768366900848,11.43833444,3330.9,3330.3,0.412]
[1768366901056,11.99333444,3330.9,3330.3,0.412]
[1768366902653,2.775,3330.9,3330.3,0.412]
[1768366903024,2.775,3330.9,3330.3,3.41471361]
[1768366903328,2.775,3330.9,3330.3,0.412]
[1768366903656,3.33,3330.9,3330.3,0.412]
[1768366904354,3.33,3330.9,3330.6,0.001]
[1768366905942,3.885,3330.9,3330.6,0.001]
[1768366906856,3.885,3330.9,3330.2,12.76258595]
[1768366907019,3.885,3330.9,3330.2,20.612098]
[1768366907020,9.21833444,3330.7,3330.2,20.612098]
[1768366907225,9.21833444,3330.7,3330.3,0.412]
[1768366907425,9.21833444,3330.5,3330.3,0.412]
[1768366908241,0.555,3330.5,3330.3,0.412]
[1768366909260,3.5575686,3330.5,3330.3,0.412]
[1768366909959,0.555,3330.5,3330.3,0.412]
[1768366910458,3.55755601,3330.5,3330.3,0.412]
[1768366910953,4.11255601,3330.5,3330.3,0.412]
[1768366911165,4.11256843,3330.5,3330.3,0.412]
[1768366911462,1.11,3330.5,3330.3,0.412]
[1768366912256,1.11,3330.5,3330.4,0.412]
[1768366912462,1.38916878,3330.5,3330.4,0.412]
[1768366912960,1.38916878,3330.5,3329.9,20.200098]
[1768366913147,1.11,3330.5,3330.0,0.412]
[1768366913326,13.88588684,3330.5,3329.9,20.200098]
[1768366913663,13.88588684,3330.5,3329.8,9.75980139]
[1768366913664,13.88588684,3330.5,3330.0,0.412]
[1768366914163,10.88333444,3330.5,3330.0,0.412]
[1768366914862,0.80384726,3331.3,3330.4,9.75980139]
[1768366915067,0.92227133,3331.2,3330.5,10.17180139]
[1768366915236,5.58125278,3331.4,3330.5,10.17180139]
[1768366915237,0.27914838,3331.1,3330.5,10.17180139]
[1768366915561,0.27914838,3331.0,3330.5,10.17180139]
[1768366915736,3.00202769,3331.1,3330.6,0.77302581]
[1768366915946,0.27915209,3331.0,3330.6,0.77302581]
[1768366916143,12.70334428,3331.1,3330.3,9.75980139]
[1768366916356,0.2791513,3331.0,3330.4,0.412]
[1768366916564,3.55702769,3331.1,3330.6,0.001]
[1768366916769,0.27915719,3331.0,3330.6,0.001]
[1768366917060,3.55702769,3331.1,3330.6,0.001]
[1768366917364,0.27914224,3331.0,3330.6,1.01828014]
[1768366917663,0.555,3331.1,3330.6,1.01828014]
[1768366917827,0.555,3331.1,3330.6,10.77808153]
[1768366918437,1.11,3331.1,3330.6,1.01828014]
[1768366918650,1.11,3331.1,3330.7,0.412]
[1768366920460,6.72725989,3331.1,3330.7,0.412]
[1768366920762,6.72725989,3331.1,3330.6,1.01828014]
[1768366921068,7.28225989,3331.1,3330.8,0.412]
[1768366921657,10.28427673,3331.1,3330.8,0.30515746]
[1768366921844,7.28225989,3331.1,3330.8,0.30515746]
[1768366922085,9.42523093,3331.0,3329.9,12.76288654]
[1768366922375,7.66905076,3331.1,3330.0,10.412]
[1768366922376,5.65255046,3330.8,3330.0,10.412]
[1768366922871,5.65255046,3330.8,3330.0,10.17180139]
[1768366923388,6.20755046,3330.8,3330.0,10.17180139]
[1768366924237,6.20755046,3330.8,3330.0,13.17480294]
[1768366924568,9.20983626,3330.8,3330.1,16.24436691]
[1768366924861,6.20755046,3330.8,3330.1,16.24436691]
[1768366925066,0.555,3330.8,3330.1,16.24436691]
[1768366925369,1.665,3331.1,3330.4,6.48456552]
[1768366925564,0.27885914,3331.0,3330.5,0.412]
[1768366925763,5.22201894,3331.1,3330.5,0.412]
[1768366925953,9.84192199,3331.0,3330.5,0.412]
[1768366926162,9.5198204,3330.8,3330.1,6.48456552]
[1768366926337,9.5198204,3330.8,3329.8,6.400098]
[1768366926684,11.07224076,3330.8,3329.9,0.412]
[1768366927040,5.28278168,3330.6,3329.5,6.400098]
[1768366927247,5.28278168,3330.6,3329.6,3.4153599]
[1768366927452,5.28278168,3330.6,3329.6,0.412]
[1768366927653,5.28278168,3330.6,3329.6,3.41535277]
[1768366928186,9.47745002,3330.5,3329.6,12.89204836]
[1768366928594,9.47745002,3330.5,3329.9,0.001]
[1768366928778,9.47745002,3330.5,3330.0,0.412]
[1768366930094,9.47745002,3330.5,3330.1,0.412]
[1768366930293,3.00264232,3330.4,3330.1,0.412]
[1768366930857,10.03245002,3330.5,3330.1,0.412]
[1768366932781,13.59001098,3330.5,3329.9,0.001]
[1768366932988,13.59001098,3330.5,3330.2,0.412]
[1768366933189,10.58745002,3330.5,3330.2,0.412]
[1768366934058,13.59001942,3330.5,3330.2,0.412]
[1768366934582,10.58745002,3330.5,3330.2,0.412]
[1768366935413,11.14245002,3330.5,3330.2,0.412]
[1768366937885,11.69745002,3330.5,3330.2,0.412]
[1768366938381,2.22,3330.5,3330.2,0.412]
[1768366938880,2.22,3330.5,3330.3,0.412]
[1768366940222,2.775,3330.5,3330.3,0.412]
[1768366940704,3.00211788,3331.0,3330.4,6.48456552]
[1768366940905,0.92288958,3330.9,3330.4,16.3400248]
[1768366941211,5.22204524,3331.1,3330.4,16.3400248]
[1768366941212,0.27933064,3330.8,3330.4,16.3400248]
[1768366941378,5.22204524,3331.1,3330.4,16.3400248]
[1768366941585,0.27934699,3331.0,3330.4,16.3400248]
[1768366941784,0.27934699,3330.9,3330.4,16.3400248]
[1768366941980,5.22203035,3331.1,3330.4,16.3400248]
[1768366942249,0.27934948,3331.0,3330.4,16.3400248]
[1768366942569,0.27934948,3330.9,3330.4,16.3400248]
[1768366942850,5.77703035,3331.1,3330.4,16.3400248]
[1768366943030,0.27935248,3331.0,3330.4,16.3400248]
[1768366943329,0.27935248,3330.9,3330.4,16.3400248]
[1768366943507,4.07568754,3331.7,3330.3,0.412]
[1768366943508,9.68427211,3331.5,3330.7,16.3400248]
[1768366943709,0.92305032,3331.4,3330.8,0.412]
[1768366943908,0.27937741,3331.3,3330.8,0.412]
[1768366944107,0.27937741,3331.2,3330.8,0.412]
[1768366944457,3.00149207,3331.7,3330.8,10.26745928]
[1768366944458,3.00156081,3331.6,3330.8,10.26745928]
[1768366944610,4.07735647,3332.1,3330.8,10.26745928]
[1768366944611,0.9229979,3331.5,3331.0,16.3400248]
[1768366944821,9.68427211,3331.9,3331.1,9.85545928]
[1768366944822,3.00151164,3331.7,3331.1,9.85545928]
[1768366945035,0.555,3331.5,3331.2,0.412]
[1768366945340,12.6855896,3331.9,3331.2,0.412]
[1768366945341,3.55640967,3331.8,3331.2,0.412]
[1768366945553,0.27929962,3331.7,3331.2,0.412]
[1768366945750,3.55640967,3331.8,3331.2,0.412]
[1768366946050,0.27929891,3331.7,3331.2,0.412]
[1768366946257,3.55640967,3331.8,3331.2,0.341486]
[1768366947443,3.55639746,3331.8,3331.2,0.341486]
[1768366947633,4.11139746,3331.8,3331.2,0.341486]
[1768366949239,1.11,3331.8,3331.2,10.19694528]
[1768366950012,1.665,3331.8,3331.2,10.19694528]
[1768366950845,4.66639463,3331.8,3331.2,10.19694528]
[1768366951149,1.665,3331.8,3331.2,10.19694528]
[1768366951448,0.002,3331.5,3331.2,10.19694528]
[1768366952732,1.667,3331.8,3331.3,9.85545928]
[1768366954119,10.23927211,3332.8,3331.7,9.85545928]
[1768366954361,3.55567799,3332.6,3331.9,9.85545928]
[1768366954734,3.887,3332.4,3331.9,9.85545928]
[1768366954934,4.442,3332.4,3331.9,9.85545928]
[1768366957453,4.997,3332.4,3331.9,9.85545928]
[1768366958635,4.997,3332.4,3332.1,9.08173706]
[1768366958835,4.997,3332.4,3332.2,9.49373706]
[1768366959569,0.555,3332.6,3332.2,9.49373706]
[1768366959743,0.555,3332.4,3332.2,9.49373706]
[1768366959942,0.114,3332.4,3332.2,0.412]
[1768366960167,0.04932653,3332.4,3332.2,0.412]
[1768366960465,0.50407575,3332.6,3332.2,0.412]
[1768366960676,9.87243715,3332.6,3331.8,9.08173706]
[1768366960837,9.87243715,3332.6,3331.9,0.412]
[1768366961342,9.87243715,3332.6,3331.9,3.41326089]
[1768366961563,9.87243715,3332.6,3331.9,12.49499795]
[1768366961870,0.50407575,3332.6,3331.9,12.49499795]
[1768366962162,0.50407575,3332.6,3332.0,9.08173706]
[1768366962339,1.05907575,3332.6,3332.0,9.08173706]
[1768366962948,1.05907575,3332.6,3332.0,12.08292251]
[1768366963759,0.002,3332.3,3332.0,12.08292251]
[1768366963958,0.002,3332.3,3332.1,0.412]
[1768366964170,1.06107575,3332.6,3332.1,0.412]
[1768366964763,1.61607575,3332.6,3332.1,0.412]
[1768366966367,1.61607575,3332.6,3332.1,9.49373706]
[1768366967268,2.17107575,3332.6,3332.1,9.49373706]
[1768366967901,2.17107575,3332.6,3332.1,0.412]
[1768366969095,2.17107575,3332.6,3332.2,0.412]
[1768366969901,2.72607575,3332.6,3332.2,0.412]
[1768366972410,3.28107575,3332.6,3332.2,0.412]
[1768366973219,3.28107575,3332.6,3331.9,12.08297984]
[1768366973422,3.28107575,3332.6,3332.3,0.412]
[1768366974886,3.83607575,3332.6,3332.3,0.412]
[1768366975808,3.83607575,3332.6,3331.9,12.08295863]
[1768366976030,3.83607575,3332.6,3332.0,0.412]
[1768366976508,3.83607575,3332.6,3332.0,3.41319921]
[1768366977011,3.83607575,3332.6,3332.0,0.412]
[1768366977209,4.39107575,3332.6,3332.0,0.412]
[1768366977705,4.39107575,3332.6,3332.0,3.41318279]
[1768366979736,4.94607575,3332.6,3331.9,12.08298846]
[1768366979933,9.3683614,3332.5,3332.1,0.412]
[1768366980601,7.21077415,3332.6,3331.1,10.0]
[1768366980602,9.3683614,3332.3,3331.1,10.0]
[1768366980799,9.3683614,3332.1,3330.8,9.08173706]
[1768366981115,9.3683614,3332.3,3331.1,9.08173706]
[1768366981443,0.27904134,3332.2,3331.3,9.08173706]
[1768366981601,9.3683614,3332.3,3331.4,12.49547806]
[1768366981801,10.29045322,3332.2,3331.4,9.49373706]
[1768366982015,6.00190268,3332.3,3331.5,0.412]
[1768366982016,9.3683614,3332.0,3331.5,0.412]
[1768366982297,9.3683614,3332.0,3331.6,0.412]
[1768366983101,9.3683614,3332.0,3331.2,3.00189759]
[1768366983305,9.3683614,3332.0,3331.3,0.71218976]
[1768366983813,9.3683614,3332.0,3331.4,0.03001741]
[1768366984306,9.3683614,3332.0,3331.3,0.71218976]
[1768366984513,9.3683614,3331.9,3331.3,0.412]
[1768366986838,9.9233614,3331.9,3331.3,0.412]
[1768366987440,9.9233614,3331.9,3331.6,0.001]
[1768366987642,9.69808103,3331.8,3329.7,6.00559618]
[1768366987938,3.55630042,3331.9,3330.1,0.412]
[1768366987939,9.69808103,3331.2,3330.1,0.412]
[1768366988098,9.69808103,3331.0,3330.1,0.412]
[1768366988303,9.69808103,3330.8,3330.1,0.412]
[1768366989246,9.69808103,3330.6,3330.1,0.33345556]
[1768366989551,9.69808103,3330.6,3329.6,9.06133896]
[1768366989552,0.41199999,3330.2,3329.6,9.06133896]
[1768366989750,0.41199999,3330.2,3330.0,0.412]
[1768366990629,10.11008102,3330.2,3329.4,9.06133896]
[1768366991629,3.00291282,3330.1,3330.0,0.412]
[1768366992144,3.00291282,3330.1,3329.5,9.06133896]
[1768366992650,3.00291282,3330.1,3330.0,0.412]
[1768366993461,3.96986103,3330.2,3330.0,0.412]
[1768366994104,4.52486103,3330.2,3330.0,0.412]
[1768366994320,4.52486103,3330.2,3329.6,0.412]
[1768366994321,15.94550332,3330.2,3329.6,0.412]
[1768366994506,4.52486103,3330.2,3329.6,0.412]
[1768366995154,4.11286104,3330.2,3329.6,0.412]
[1768366995360,4.11286104,3330.2,3329.7,9.09137169]
[1768366995361,1.11,3330.2,3329.7,9.09137169]
[1768366995554,1.11,3330.2,3329.7,9.06133896]
[1768366996653,1.665,3330.2,3329.7,9.06133896]
[1768366997957,4.66782457,3330.2,3329.6,0.412]
[1768366998158,4.66782457,3330.2,3329.6,9.50425126]
[1768366998159,1.665,3330.2,3329.6,9.50425126]
[1768366998639,1.58660497,3330.2,3329.8,9.09225126]
[1768366998843,2.14160497,3330.2,3329.8,9.09225126]
[1768366999245,2.14160497,3330.2,3329.9,9.09325126]
[1768367001425,2.69660497,3330.2,3330.0,9.09225126]
[1768367003157,0.69660497,3330.2,3330.0,9.09225126]
[1768367003357,0.59660497,3330.2,3330.0,12.09524492]
[1768367003559,0.967,3330.8,3330.1,9.09225126]
[1768367003755,0.967,3330.8,3330.3,9.09225126]
[1768367006280,1.522,3330.8,3330.3,9.09225126]
[1768367007087,1.11,3330.8,3330.4,9.09225126]
[1768367007977,1.11,3330.8,3330.4,12.09487294]
[1768367008177,1.11,3330.8,3330.5,9.09225126]
[1768367008655,1.665,3330.8,3330.5,9.09225126]
[1768367009968,1.665,3330.8,3330.3,12.09494512]
[1768367010669,1.665,3330.8,3330.1,9.09225126]
[1768367010871,9.40346056,3330.7,3330.0,3.85]
[1768367011698,0.002,3330.5,3330.0,3.85]
[1768367011904,0.413,3330.4,3330.0,3.85]
[1768367012294,0.413,3330.4,3330.0,4.53541636]
[1768367012813,0.413,3330.4,3330.0,3.68841112]
[1768367013282,0.413,3330.4,3330.0,0.68541636]
[1768367013488,0.968,3330.4,3330.0,0.68541636]
[1768367016313,1.523,3330.4,3330.0,0.68541636]
[1768367016872,1.523,3330.4,3330.0,3.68840227]
[1768367017075,1.523,3330.4,3330.0,0.68541636]
[1768367018424,1.523,3330.4,3330.0,3.68840197]
[1768367018624,2.078,3330.4,3330.0,3.68840197]
[1768367018822,2.078,3330.4,3330.0,0.68541636]
[1768367020345,2.078,3330.4,3329.9,9.09325126]
[1768367021051,2.078,3330.4,3329.9,0.001]
[1768367021355,2.633,3330.4,3329.9,0.001]
[1768367022167,12.37812673,3330.4,3329.9,0.001]
[1768367022322,12.37812673,3330.4,3328.9,9.6676545]
[1768367022323,9.74512673,3330.3,3328.9,9.6676545]
[1768367022524,9.74512673,3330.3,3329.3,9.6676545]
[1768367022525,10.9831394,3330.3,3329.3,9.6676545]
[1768367022730,10.9831394,3330.3,3329.4,9.6676545]
[1768367023554,3.00282265,3330.2,3329.4,9.6676545]
[1768367023739,9.74512673,3330.1,3329.2,12.67133646]
[1768367024043,10.15812673,3330.0,3329.2,12.67133646]
[1768367024725,10.15812673,3330.0,3329.3,3.00362584]
[1768367025144,10.15812673,3330.0,3329.3,3.00358745]
[1768367025145,11.47422167,3330.0,3329.3,3.00358745]
[1768367026224,12.02922167,3330.0,3329.3,3.00358745]
[1768367027146,12.02922167,3330.0,3329.2,12.67134211]
[1768367027350,10.71312673,3330.0,3329.2,12.67134211]
[1768367027734,0.968,3330.0,3329.5,9.6676545]
[1768367027940,0.413,3330.2,3329.6,9.6676545]
[1768367028721,0.968,3330.2,3329.6,9.6676545]
[1768367029840,0.968,3330.2,3329.7,3.00327356]
[1768367031117,0.968,3330.2,3329.6,9.6676545]
[1768367031313,1.523,3330.2,3329.6,12.67101592]
[1768367032035,1.523,3330.2,3329.6,3.00336142]
[1768367032415,1.523,3330.2,3329.5,3.00341365]
[1768367033755,2.078,3330.2,3329.5,3.00341365]
[1768367034657,2.078,3330.2,3329.7,9.6676545]
[1768367035732,2.078,3330.2,3329.8,0.001]
[1768367036282,2.633,3330.2,3329.8,0.001]
[1768367038750,3.188,3330.2,3329.8,0.001]
[1768367041028,3.743,3330.2,3329.8,0.001]
[1768367042957,3.33,3330.2,3329.8,0.001]
[1768367043362,3.885,3330.2,3329.8,0.001]
[1768367045451,3.885,3330.2,3329.8,9.77274638]
[1768367045655,4.44,3330.2,3329.8,9.77274638]
[1768367047229,4.44,3330.2,3329.8,12.77592172]
[1768367048241,4.44,3330.2,3329.8,3.00417534]
[1768367048440,4.995,3330.2,3329.8,3.00417534]
[1768367049773,4.995,3330.2,3328.5,9.77174638]
[1768367049774,3.03952469,3330.1,3328.5,9.77174638]
[1768367049958,3.03952469,3330.1,3328.4,2.31142155]
[1768367049959,3.03952469,3330.1,3329.2,3.00372372]
[1768367050161,3.03952469,3330.1,3328.9,9.77174638]
[1768367050342,3.03952469,3330.1,3329.4,3.00353388]
[1768367050542,9.61723689,3330.0,3329.4,3.00353388]
[1768367050871,9.61723689,3330.0,3329.5,3.0034452]
[1768367051205,4.995,3330.2,3329.6,3.03333278]